bitfinex/quotes_SOLUSD_20241101
["timestamp","ask_amount","ask_price","bid_price","bid_amount"]
[1730472990384,18.46148067,170.69,170.65,6.031]
[1730472990570,24.32028067,170.69,170.65,6.031]
[1730472991781,20.0,170.74,170.65,24.49248067]
[1730472991782,18.46148067,170.7,170.65,24.49248067]
[1730472992162,18.46148067,170.71,170.65,24.49248067]
[1730472992364,24.31868067,170.73,170.68,18.46148067]
[1730472992576,5.8572,170.73,170.69,18.46148067]
[1730472992777,5.8572,170.73,170.68,18.46148067]
[1730472993075,24.31828067,170.74,170.69,18.46148067]
[1730472993279,24.31828067,170.74,170.68,18.46148067]
[1730472993782,20.0,170.73,170.68,18.46148067]
[1730472994168,38.46148067,170.73,170.68,18.46148067]
[1730472994478,18.46148067,170.7,170.65,39.14228067]
[1730472994980,18.46148067,170.7,170.65,6.031]
[1730472995480,18.46148067,170.69,170.65,6.031]
[1730472995677,18.46148067,170.68,170.65,6.031]
[1730472995979,18.46148067,170.67,170.64,15.301]
[1730472996281,18.46148067,170.66,170.61,24.91788067]
[1730472996574,18.46148067,170.64,170.61,6.4564]
[1730472996781,18.46148067,170.64,170.6,15.1406]
[1730472997481,18.46148067,170.65,170.6,15.1406]
[1730472997671,18.46148067,170.63,170.6,15.1406]
[1730472997880,0.76404913,170.68,170.6,15.1406]
[1730472997881,24.32238067,170.62,170.6,15.1406]
[1730472998478,35.56790354,170.62,170.6,15.1406]
[1730472998657,5.8609,170.62,170.6,15.1406]
[1730472999076,35.56790354,170.62,170.58,6.67790332]
[1730472999279,29.70700354,170.61,170.58,6.67790332]
[1730472999462,29.70700354,170.6,170.58,6.67790332]
[1730472999667,29.70700354,170.61,170.58,6.67790332]
[1730473000183,35.56860354,170.61,170.58,6.67790332]
[1730473000481,29.70700354,170.6,170.58,6.67790332]
[1730473001260,29.70700354,170.61,170.58,6.67790332]
[1730473001881,0.76404913,170.68,170.58,6.67790332]
[1730473001882,29.70700354,170.63,170.58,36.38490686]
[1730473002384,29.70700354,170.63,170.58,42.24720686]
[1730473002683,20.0,170.64,170.59,29.70700354]
[1730473002868,49.70700354,170.64,170.59,29.70700354]
[1730473003062,29.70700354,170.62,170.58,6.67790332]
[1730473003370,35.56760354,170.63,170.58,36.38490686]
[1730473003759,5.8606,170.63,170.59,29.70700354]
[1730473003987,35.56760354,170.63,170.58,36.38490686]
[1730473004281,35.56760354,170.63,170.58,42.24710686]
[1730473005492,5.8606,170.63,170.59,29.70700354]
[1730473005775,29.70700354,170.66,170.61,29.70700354]
[1730473005983,5.86,170.65,170.62,29.70700354]
[1730473006178,5.8592,170.67,170.62,29.70700354]
[1730473006359,29.70700354,170.7,170.65,29.70700354]
[1730473006562,35.56480354,170.71,170.67,29.70700354]
[1730473006777,5.8578,170.71,170.68,29.70700354]
[1730473006983,29.70700354,170.7,170.65,29.70700354]
[1730473007483,29.70700354,170.69,170.64,29.70700354]
[1730473007864,29.70700354,170.67,170.62,29.70700354]
[1730473008875,29.70700354,170.67,170.61,45.29850354]
[1730473009073,29.70700354,170.66,170.61,45.29850354]
[1730473009379,29.70700354,170.67,170.62,29.70700354]
[1730473009584,20.0,170.67,170.62,29.70700354]
[1730473010085,5.8596,170.66,170.62,29.70700354]
[1730473010393,5.8596,170.66,170.63,29.70700354]
[1730473010569,5.8596,170.66,170.62,29.70700354]
[1730473010776,5.8596,170.66,170.63,29.70700354]
[1730473010975,5.8596,170.66,170.62,29.70700354]
[1730473011174,5.8596,170.66,170.61,45.29850354]
[1730473011892,5.8596,170.66,170.62,29.70700354]
[1730473012201,20.0,170.67,170.62,29.70700354]
[1730473012374,49.70700354,170.67,170.62,29.70700354]
[1730473012999,49.70700354,170.68,170.62,29.70700354]
[1730473013675,49.70700354,170.68,170.63,29.70700354]
[1730473014791,7.3229453,170.74,170.65,29.70700354]
[1730473014792,29.70700354,170.7,170.65,29.70700354]
[1730473014995,5.8578,170.71,170.66,29.70700354]
[1730473015199,5.8578,170.71,170.67,29.70700354]
[1730473015378,35.56480354,170.71,170.66,29.70700354]
[1730473015573,29.70700354,170.7,170.65,29.70700354]
[1730473016776,5.8578,170.71,170.61,36.106]
[1730473016777,5.8585,170.69,170.66,29.70700354]
[1730473017486,32.94700354,170.72,170.67,29.70700354]
[1730473017706,5.8582,170.71,170.67,29.70700354]
[1730473018002,5.8582,170.71,170.69,29.70700354]
[1730473018394,5.8582,170.71,170.68,29.70700354]
[1730473018697,5.8582,170.71,170.68,18.54344627]
[1730473019074,5.8582,170.71,170.64,18.54344627]
[1730473019075,9.0975,170.72,170.7,18.54344627]
[1730473019278,3.24,170.72,170.7,18.54344627]
[1730473019487,3.24,170.72,170.71,18.54344627]
[1730473021392,3.24,170.72,170.71,24.40124627]
[1730473022283,6.2155,170.86,170.71,24.40124627]
[1730473022284,5.8548,170.8,170.71,57.58939254]
[1730473022586,18.54344627,170.85,170.79,18.54344627]
[1730473022793,18.54344627,170.86,170.8,18.54344627]
[1730473022993,24.39614627,170.86,170.8,18.54344627]
[1730473023193,5.8527,170.86,170.81,18.54344627]
[1730473023374,5.8527,170.86,170.83,15.30344627]
[1730473023580,24.39514627,170.89,170.83,15.30344627]
[1730473023797,18.54344627,170.87,170.82,18.54344627]
[1730473024112,5.8517,170.89,170.85,18.54344627]
[1730473024394,5.8517,170.89,170.86,18.54344627]
[1730473024693,5.851,170.91,170.87,18.54344627]
[1730473024895,5.8506,170.92,170.88,18.54344627]
[1730473025403,18.54344627,170.94,170.84,23.1214]
[1730473025404,18.54344627,170.95,170.9,18.54344627]
[1730473025779,18.54344627,170.96,170.91,18.54344627]
[1730473026280,24.39234627,170.97,170.91,18.54344627]
[1730473026487,5.8489,170.97,170.93,18.54344627]
[1730473026704,5.8489,170.97,170.92,18.54344627]
[1730473027680,20.0,170.96,170.92,18.54344627]
[1730473028187,20.0,170.96,170.93,18.54344627]
[1730473028708,25.8489,170.97,170.93,29.58274027]
[1730473029005,25.8489,170.97,170.95,29.58274027]
[1730473029297,5.8476,171.01,170.96,29.58274027]
[1730473029504,5.8476,171.01,170.98,29.58274027]
[1730473029680,5.8476,171.01,170.97,29.58274027]
[1730473029880,5.8476,171.01,170.98,29.58274027]
[1730473030077,5.8465,171.04,171.0,29.58274027]
[1730473030411,35.42924027,171.04,170.98,29.58274027]
[1730473030704,35.42924027,171.04,170.99,29.58274027]
[1730473030891,5.8465,171.04,170.99,29.58274027]
[1730473031098,5.8465,171.04,171.0,29.58274027]
[1730473031395,5.8465,171.04,171.01,29.58274027]
[1730473031786,5.8465,171.04,171.0,29.58274027]
[1730473032299,5.8465,171.04,171.01,29.58274027]
[1730473032607,5.8465,171.04,171.02,29.58274027]
[1730473032788,5.8455,171.07,171.03,29.58274027]
[1730473032991,5.8455,171.07,171.06,29.58274027]
[1730473033494,5.8455,171.07,171.05,29.58274027]
[1730473034683,29.58274027,171.11,171.06,29.58274027]
[1730473034883,5.8445,171.1,171.07,29.58274027]
[1730473035098,5.8445,171.1,171.09,29.58274027]
[1730473035296,35.42554027,171.15,171.09,29.58274027]
[1730473036405,35.42554027,171.15,171.02,43.4021]
[1730473036406,5.8428,171.15,171.12,29.58274027]
[1730473036809,5.8428,171.15,171.1,29.58274027]
[1730473036810,29.58274027,171.15,171.1,29.58274027]
[1730473037109,5.8424,171.16,171.11,29.58274027]
[1730473037605,5.8424,171.16,171.12,29.58274027]
[1730473037782,5.8424,171.16,171.13,29.58274027]
[1730473037987,5.8424,171.16,171.15,29.58274027]
[1730473038202,5.8424,171.16,171.14,29.58274027]
[1730473039497,5.8424,171.16,171.15,29.58274027]
[1730473039687,0.5987216,171.17,171.15,29.58274027]
[1730473039919,1.46728515,171.26,171.16,29.58274027]
[1730473039920,29.58274027,171.26,171.16,29.58274027]
[1730473040086,29.58274027,171.27,171.22,29.58274027]
[1730473040585,29.58274027,171.28,171.23,29.58274027]
[1730473040984,29.58274027,171.29,171.24,29.58274027]
[1730473041407,5.8383,171.28,171.24,29.58274027]
[1730473041602,35.42104027,171.28,171.23,29.58274027]
[1730473042205,29.58274027,171.27,171.22,29.58274027]
[1730473042599,20.0,171.26,171.22,29.58274027]
[1730473042801,20.0,171.27,171.22,29.58274027]
[1730473043115,20.0,171.27,171.24,29.58274027]
[1730473043288,20.0,171.27,171.23,29.58274027]
[1730473043492,5.8387,171.27,171.23,29.58274027]
[1730473043999,20.0,171.26,171.21,45.64774027]
[1730473044204,20.0,171.26,171.25,29.58274027]
[1730473044701,20.0,171.26,171.24,29.58274027]
[1730473044888,20.0,171.26,171.25,29.58274027]
[1730473045513,29.58274027,171.32,171.25,29.58274027]
[1730473045812,29.58274027,171.32,171.27,29.58274027]
[1730473046194,5.8366,171.33,171.29,29.58274027]
[1730473046395,29.58274027,171.32,171.27,29.58274027]
[1730473046596,29.58274027,171.3,171.24,29.58274027]
[1730473046996,20.0,171.29,171.25,29.58274027]
[1730473047412,20.0,171.29,171.22,6.2727]
[1730473047413,49.58274027,171.29,171.24,29.58274027]
[1730473047716,5.8383,171.28,171.26,29.58274027]
[1730473047925,5.8373,171.31,171.27,29.58274027]
[1730473048099,20.0,171.3,171.28,29.58274027]
[1730473048513,20.0,171.3,171.27,29.58274027]
[1730473048899,5.838,171.29,171.28,29.58274027]
[1730473049106,30.18146187,171.34,171.28,29.58274027]
[1730473049304,5.8366,171.33,171.29,29.58274027]
[1730473049635,5.8366,171.33,171.3,29.58274027]
[1730473049825,5.8366,171.33,171.31,29.58274027]
[1730473050004,5.8366,171.33,171.32,29.58274027]
[1730473050200,0.5987216,171.34,171.32,29.58274027]
[1730473050520,6.4352216,171.34,171.33,29.58274027]
[1730473051422,26.4352216,171.34,171.33,29.58274027]
[1730473051622,6.4352216,171.34,171.33,29.58274027]
[1730473052005,6.4352216,171.34,171.31,50.83064027]
[1730473052211,6.4352216,171.34,171.31,15.0819]
[1730473052413,36.01796187,171.34,171.29,29.58274027]
[1730473052904,29.58274027,171.3,171.25,29.58274027]
[1730473053098,20.0,171.33,171.22,46.12944027]
[1730473053099,29.58274027,171.27,171.22,46.12944027]
[1730473053623,29.58274027,171.28,171.23,29.58274027]
[1730473054123,29.58274027,171.29,171.23,29.58274027]
[1730473054421,20.0,171.28,171.23,29.58274027]
[1730473054728,49.58274027,171.28,171.23,29.58274027]
[1730473055230,5.8387,171.27,171.23,29.58274027]
[1730473056114,35.42144027,171.27,171.22,46.12944027]
[1730473056314,35.42144027,171.27,171.22,16.5467]
[1730473056511,49.58274027,171.26,171.22,16.5467]
[1730473056912,29.58274027,171.23,171.18,29.58274027]
[1730473057110,29.58274027,171.21,171.12,16.0106]
[1730473057421,20.0,171.18,171.14,29.58274027]
[1730473057632,5.8414,171.19,171.17,29.58274027]
[1730473058231,5.8414,171.19,171.18,29.58274027]
[1730473058525,5.8414,171.19,171.17,29.58274027]
[1730473058732,49.58274027,171.22,171.16,29.58274027]
[1730473058936,5.8407,171.21,171.16,29.58274027]
[1730473059318,35.42344027,171.21,171.16,29.58274027]
[1730473059929,29.58274027,171.19,171.14,29.58274027]
[1730473060334,20.0,171.2,171.16,29.58274027]
[1730473060516,5.8407,171.21,171.17,29.58274027]
[1730473060714,5.8407,171.21,171.12,36.4637]
[1730473060715,5.8407,171.21,171.2,29.58274027]
[1730473061436,5.8397,171.24,171.2,29.58274027]
[1730473061812,5.8397,171.24,171.21,29.58274027]
[1730473062311,20.0,171.23,171.21,29.58274027]
[1730473062532,20.0,171.23,171.16,14.606]
[1730473062533,20.0,171.23,171.19,29.58274027]
[1730473062831,20.0,171.23,171.2,29.58274027]
[1730473063430,5.8397,171.24,171.2,29.58274027]
[1730473063730,5.8397,171.24,171.23,29.58274027]
[1730473063937,35.42144027,171.27,171.22,29.58274027]
[1730473064232,35.42144027,171.27,171.21,29.58274027]
[1730473064413,35.42144027,171.27,171.22,29.58274027]
[1730473065230,20.0,171.22,171.15,29.58274027]
[1730473065440,29.58274027,171.21,171.15,29.58274027]
[1730473066230,29.58274027,171.18,171.13,29.58274027]
[1730473066411,29.58274027,171.17,171.12,45.59334027]
[1730473066611,29.58274027,171.18,171.12,45.59334027]
[1730473066808,20.0,171.18,171.14,29.58274027]
[1730473067736,5.8411,171.2,171.17,29.58274027]
[1730473068338,55.42314027,171.22,171.17,29.58274027]
[1730473068522,29.58274027,171.21,171.16,29.58274027]
[1730473069131,49.58274027,171.2,171.15,29.58274027]
[1730473069661,20.0,171.21,171.13,29.58274027]
[1730473069820,29.58274027,171.19,171.14,29.58274027]
[1730473070020,49.58274027,171.21,171.16,29.58274027]
[1730473070421,5.8411,171.2,171.17,29.58274027]
[1730473070825,5.8411,171.2,171.18,29.58274027]
[1730473072241,5.8411,171.2,171.17,29.58274027]
[1730473072443,35.42384027,171.2,171.15,29.58274027]
[1730473073123,5.8411,171.2,171.15,29.58274027]
[1730473073326,5.8411,171.2,171.16,29.58274027]
[1730473073639,20.0,171.19,171.16,29.58274027]
[1730473074134,5.8418,171.18,171.16,29.58274027]
[1730473074533,5.8418,171.18,171.15,29.58274027]
[1730473074739,5.8418,171.18,171.16,29.58274027]
[1730473076129,5.8418,171.18,171.17,29.58274027]
[1730473076621,25.8404,171.22,171.17,29.58274027]
[1730473076832,25.8404,171.22,171.18,29.58274027]
[1730473077030,25.8404,171.22,171.2,29.58274027]
[1730473077256,29.58274027,171.27,171.21,29.58274027]
[1730473077624,29.58274027,171.23,171.17,29.58274027]
[1730473077942,29.58274027,171.27,171.16,29.58274027]
[1730473078139,5.8411,171.2,171.16,29.58274027]
[1730473083253,29.58274027,171.16,171.12,16.0106]
[1730473083746,29.58274027,171.15,171.12,16.0106]
[1730473083955,29.58274027,171.15,171.11,6.3267]
[1730473084252,5.8431,171.14,171.12,29.58274027]
[1730473084951,5.8421,171.17,171.13,29.58274027]
[1730473085158,5.8421,171.17,171.14,29.58274027]
[1730473085530,5.8421,171.17,171.13,29.58274027]
[1730473086061,29.58274027,171.16,171.11,6.3267]
[1730473086343,5.8428,171.15,171.11,6.3267]
[1730473086729,5.8428,171.15,171.11,35.90944027]
[1730473086932,5.8428,171.15,171.12,29.58274027]
[1730473088237,5.8424,171.16,171.11,35.90944027]
[1730473089035,5.8424,171.16,171.13,29.58274027]
[1730473089545,5.8424,171.16,171.14,29.58274027]
[1730473090128,5.8424,171.16,171.13,29.58274027]
[1730473090752,29.58274027,171.22,171.15,29.58274027]
[1730473091054,29.58274027,171.22,171.16,29.58274027]
[1730473092055,5.8407,171.21,171.17,29.58274027]
[1730473092549,29.58274027,171.19,171.14,29.58274027]
[1730473092756,5.8407,171.21,171.17,29.58274027]
[1730473093055,5.8407,171.21,171.16,29.58274027]
[1730473093852,5.8407,171.21,171.17,29.58274027]
[1730473094950,29.58274027,171.26,171.2,29.58274027]
[1730473095151,29.58274027,171.26,171.21,29.58274027]
[1730473095355,29.58274027,171.27,171.22,29.58274027]
[1730473095855,35.42144027,171.27,171.22,29.58274027]
[1730473096232,29.58274027,171.23,171.18,29.58274027]
[1730473096649,29.58274027,171.24,171.19,29.58274027]
[1730473097155,29.58274027,171.23,171.18,29.58274027]
[1730473097346,29.58274027,171.22,171.17,29.58274027]
[1730473097552,5.8407,171.21,171.17,29.58274027]
[1730473097858,5.8407,171.21,171.19,29.58274027]
[1730473099163,29.58274027,171.24,171.19,29.58274027]
[1730473099451,5.84,171.23,171.19,29.58274027]
[1730473100056,5.84,171.23,171.18,29.58274027]
[1730473100355,5.84,171.23,171.19,29.58274027]
[1730473101566,5.84,171.23,171.18,29.58274027]
[1730473101860,5.84,171.23,171.2,29.58274027]
[1730473102054,5.84,171.23,171.19,29.58274027]
[1730473102552,35.42274027,171.23,171.18,29.58274027]
[1730473102758,49.58274027,171.2,171.16,16.4565]
[1730473102946,20.0,171.2,171.17,29.58274027]
[1730473103151,20.0,171.22,171.18,29.58274027]
[1730473103535,20.0,171.22,171.19,29.58274027]
[1730473104762,5.8407,171.21,171.19,18.43209365]
[1730473104941,5.8407,171.21,171.18,18.43209365]
[1730473105553,18.43209365,171.19,171.13,18.43209365]
[1730473105767,18.43209365,171.18,171.12,35.03449365]
[1730473105945,18.43209365,171.18,171.13,18.43209365]
[1730473106145,20.0,171.17,171.12,35.03449365]
[1730473106446,20.0,171.16,171.12,16.6024]
[1730473106637,18.43209365,171.2,171.15,18.43209365]
[1730473106949,16.94960242,171.34,171.19,18.43209365]
[1730473106950,20.0,171.22,171.19,18.43209365]
[1730473107457,5.8397,171.24,171.19,18.43209365]
[1730473108158,5.8397,171.24,171.21,18.43209365]
[1730473108555,5.8397,171.24,171.21,29.48565181]
[1730473108756,29.48565181,171.26,171.21,29.48565181]
[1730473108942,5.8394,171.25,171.21,29.48565181]
[1730473109843,5.8394,171.25,171.2,29.48565181]
[1730473109844,35.32505181,171.25,171.2,29.48565181]
[1730473111261,29.48565181,171.23,171.18,29.48565181]
[1730473112345,49.48565181,171.24,171.18,29.48565181]
[1730473112751,20.0,171.24,171.2,29.48565181]
[1730473114643,5.84,171.23,171.19,29.48565181]
[1730473115456,5.84,171.23,171.2,29.48565181]
[1730473116361,5.84,171.23,171.19,29.48565181]
[1730473116952,5.84,171.23,171.18,29.48565181]
[1730473117645,5.84,171.23,171.19,29.48565181]
[1730473118547,20.0,171.22,171.19,29.48565181]
[1730473118750,5.8407,171.21,171.19,29.48565181]
[1730473120755,5.84,171.23,171.2,29.48565181]
[1730473120950,20.0,171.27,171.22,29.48565181]
[1730473121270,5.8383,171.28,171.24,29.48565181]
[1730473122181,5.8383,171.28,171.26,29.48565181]
[1730473122839,5.8377,171.3,171.26,29.48565181]
[1730473123044,5.837,171.32,171.28,29.48565181]
[1730473123350,5.837,171.32,171.3,29.48565181]
[1730473123549,5.837,171.32,171.28,29.48565181]
[1730473124061,0.5987216,171.34,171.29,29.48565181]
[1730473124554,0.5987216,171.34,171.31,29.48565181]
[1730473126149,5.8366,171.33,171.31,29.48565181]
[1730473126964,6.4350216,171.34,171.32,29.48565181]
[1730473127146,0.5987216,171.34,171.33,29.48565181]
[1730473128043,0.5987216,171.34,171.33,36.07055181]
[1730473128240,0.5987216,171.34,171.33,41.90715181]
[1730473128452,0.5987216,171.34,171.33,82.13453581]
[1730473128757,0.5987216,171.34,171.33,71.03982693]
[1730473129352,5.8342,171.41,171.33,71.16531693]
[1730473129562,18.39094293,171.45,171.4,18.39094293]
[1730473130064,18.39094293,171.45,171.33,43.4637]
[1730473130065,18.39094293,171.41,171.35,18.39094293]
[1730473130241,18.39094293,171.4,171.35,18.39094293]
[1730473130557,18.39094293,171.4,171.33,37.6271]
[1730473130558,20.0,171.43,171.33,43.4637]
[1730473130764,20.0,171.43,171.34,23.776884]
[1730473130954,20.0,171.43,171.4,29.42186429]
[1730473131567,20.0,171.43,171.34,23.776884]
[1730473131568,29.42186429,171.43,171.37,29.42186429]
[1730473131861,29.42186429,171.42,171.36,29.42186429]
[1730473132065,5.8329,171.44,171.41,29.42186429]
[1730473132857,35.25476429,171.44,171.39,29.42186429]
[1730473133059,5.8329,171.44,171.4,29.42186429]
[1730473133270,5.8329,171.44,171.41,29.42186429]
[1730473133475,5.8329,171.44,171.42,29.42186429]
[1730473133673,5.8329,171.44,171.43,29.42186429]
[1730473133971,29.42186429,171.49,171.43,29.42186429]
[1730473134172,35.25276429,171.5,171.44,29.42186429]
[1730473134363,5.8309,171.5,171.47,29.42186429]
[1730473135167,5.8309,171.5,171.46,29.42186429]
[1730473135590,5.8309,171.5,171.48,29.42186429]
[1730473135751,5.8309,171.5,171.47,29.42186429]
[1730473135958,35.25276429,171.5,171.45,29.42186429]
[1730473136366,5.8309,171.5,171.46,29.42186429]
[1730473136559,5.8309,171.5,171.47,29.42186429]
[1730473136764,5.8309,171.5,171.45,29.42186429]
[1730473138050,29.42186429,171.46,171.39,29.42186429]
[1730473138275,29.42186429,171.43,171.38,29.42186429]
[1730473138675,29.42186429,171.44,171.39,29.42186429]
[1730473138850,29.42186429,171.45,171.4,29.42186429]
[1730473139050,29.42186429,171.41,171.36,45.65096429]
[1730473139576,29.42186429,171.42,171.37,29.42186429]
[1730473140276,35.25506429,171.43,171.38,29.42186429]
[1730473140489,5.8332,171.43,171.39,29.42186429]
[1730473140666,5.8332,171.43,171.4,29.42186429]
[1730473141480,5.8331,171.44,171.41,29.42186429]
[1730473141673,5.8331,171.44,171.4,29.42186429]
[1730473142076,29.42186429,171.46,171.41,29.42186429]
[1730473142286,20.0,171.47,171.42,29.42186429]
[1730473142454,20.0,171.47,171.43,29.42186429]
[1730473142659,20.0,171.47,171.45,29.42186429]
[1730473142862,20.0,171.49,171.45,29.42186429]
[1730473143160,5.8309,171.5,171.46,29.42186429]
[1730473143365,5.8309,171.5,171.49,29.42186429]
[1730473143563,0.5987216,171.51,171.49,29.42186429]
[1730473143781,6.4293216,171.51,171.5,29.42186429]
[1730473144458,0.5987216,171.51,171.5,29.42186429]
[1730473145266,0.5987216,171.51,171.5,35.25276429]
[1730473145483,0.5987216,171.51,171.5,29.42186429]
[1730473146479,6.4292216,171.51,171.5,29.42186429]
[1730473147563,0.5987216,171.51,171.5,29.42186429]
[1730473147766,6.4292216,171.51,171.49,29.42186429]
[1730473147965,6.4292216,171.51,171.48,29.42186429]
[1730473148779,6.4292216,171.51,171.47,29.42186429]
[1730473149793,6.4292216,171.51,171.48,29.42186429]
[1730473150985,6.4292216,171.51,171.47,29.42186429]
[1730473151675,6.4292216,171.51,171.48,29.42186429]
[1730473152275,6.4292216,171.51,171.49,29.42186429]
[1730473152765,6.4292216,171.51,171.48,18.3688594]
[1730473152992,0.5987216,171.51,171.5,18.3688594]
[1730473153180,6.4292216,171.51,171.5,18.3688594]
[1730473154375,6.4292216,171.51,171.49,18.3688594]
[1730473156496,6.4292216,171.51,171.47,18.3688594]
[1730473156867,24.798081,171.51,171.46,18.3688594]
[1730473157071,18.3688594,171.5,171.45,18.3688594]
[1730473157291,18.3688594,171.48,171.42,34.6046594]
[1730473157498,18.3688594,171.46,171.42,16.2358]
[1730473157674,5.8326,171.45,171.42,16.2358]
[1730473158391,5.8326,171.45,171.42,34.6046594]
[1730473158592,5.8312,171.49,171.44,18.3688594]
[1730473158784,5.8312,171.49,171.45,18.3688594]
[1730473159187,5.8312,171.49,171.46,18.3688594]
[1730473159388,5.8312,171.49,171.45,18.3688594]
[1730473159711,24.2000594,171.49,171.44,18.3688594]
[1730473161074,5.8312,171.49,171.46,18.3688594]
[1730473161881,5.8309,171.5,171.48,18.3688594]
[1730473162276,6.4293216,171.51,171.49,18.3688594]
[1730473162792,6.4292216,171.51,171.47,18.3688594]
[1730473163300,6.4292216,171.51,171.44,0.12549]
[1730473163301,18.3688594,171.5,171.45,18.3688594]
[1730473163486,24.798081,171.51,171.45,18.3688594]
[1730473163684,0.5987216,171.51,171.48,18.3688594]
[1730473163886,0.5987216,171.51,171.47,22.72818]
[1730473164103,0.5987216,171.51,171.5,18.3688594]
[1730473166109,24.798081,171.51,171.46,18.3688594]
[1730473166674,18.3688594,171.49,171.44,18.3688594]
[1730473167396,18.3688594,171.5,171.45,18.3688594]
[1730473167886,5.8312,171.49,171.45,18.3688594]
[1730473168292,24.2000594,171.49,171.44,18.3688594]
[1730473168486,35.23641531,171.49,171.44,29.40521531]
[1730473170376,5.8312,171.49,171.46,29.40521531]
[1730473170602,5.8312,171.49,171.45,29.40521531]
[1730473170807,35.23641531,171.49,171.44,29.40521531]
[1730473171213,5.8312,171.49,171.45,29.40521531]
[1730473171715,5.8312,171.49,171.43,22.0188]
[1730473171905,35.23641531,171.49,171.44,29.40521531]
[1730473173801,5.8312,171.49,171.45,29.40521531]
[1730473174303,5.8309,171.5,171.48,29.40521531]
[1730473174504,6.4293216,171.51,171.49,29.40521531]
[1730473175521,6.4293216,171.51,171.45,29.40521531]
[1730473175705,6.4293216,171.51,171.47,29.40521531]
[1730473177107,6.4293216,171.51,171.48,29.40521531]
[1730473177316,0.5987216,171.51,171.49,29.40521531]
[1730473177506,6.4293216,171.51,171.49,29.40521531]
[1730473178306,6.4293216,171.51,171.48,29.40521531]
[1730473179323,6.4293216,171.51,171.47,29.40521531]
[1730473179908,35.83453691,171.51,171.46,29.40521531]
[1730473180610,35.83453691,171.51,171.43,27.852]
[1730473180611,6.4293216,171.51,171.47,29.40521531]
[1730473181130,35.83453691,171.51,171.46,29.40521531]
[1730473182627,6.4293216,171.51,171.47,29.40521531]
[1730473183419,35.83453691,171.51,171.46,29.40521531]
[1730473185829,29.40521531,171.49,171.44,29.40521531]
[1730473186005,29.40521531,171.48,171.43,51.42401531]
[1730473186206,35.23611531,171.5,171.45,29.40521531]
[1730473186839,5.8309,171.5,171.46,29.40521531]
[1730473187323,5.8309,171.5,171.47,29.40521531]
[1730473188312,5.8309,171.5,171.48,29.40521531]
[1730473188628,6.4293216,171.51,171.49,29.40521531]
[1730473188931,6.4293216,171.51,171.5,29.40521531]
[1730473189321,6.4293216,171.51,171.5,18.36545342]
[1730473189714,0.5987216,171.51,171.5,18.36545342]
[1730473190428,6.4294216,171.51,171.48,18.36545342]
[1730473190627,6.4294216,171.51,171.47,18.36545342]
[1730473190932,6.4294216,171.51,171.48,18.36545342]
[1730473191927,6.4294216,171.51,171.49,18.36545342]
[1730473192434,0.5987216,171.51,171.5,18.36545342]
[1730473194229,0.5987216,171.51,171.49,18.36545342]
[1730473194414,5.8309,171.5,171.48,18.36545342]
[1730473194611,0.5987216,171.51,171.48,18.36545342]
[1730473194612,6.4292216,171.51,171.48,18.36545342]
[1730473195736,6.4292216,171.51,171.49,18.36545342]
[1730473195737,0.5987216,171.51,171.49,18.36545342]
[1730473195916,6.4292216,171.51,171.49,18.36545342]
[1730473198235,0.5987216,171.51,171.5,18.36545342]
[1730473199923,0.5987216,171.51,171.49,18.36545342]
[1730473200327,0.5987216,171.51,171.5,18.36545342]
[1730473200717,0.5987216,171.51,171.5,42.14233742]
[1730473200921,0.5987216,171.51,171.5,63.94391742]
[1730473201136,0.5987216,171.51,171.5,85.23492631]
[1730473202036,0.5987216,171.51,171.5,89.90030742]
[1730473202418,0.5987216,171.51,171.5,69.52383742]
[1730473202631,6.4292216,171.51,171.48,18.36545342]
[1730473203813,6.4292216,171.51,171.46,27.572]
[1730473203814,0.5987216,171.51,171.5,18.36545342]
[1730473204435,0.5987216,171.51,171.5,24.19635342]
[1730473204938,0.5987216,171.51,171.5,47.97323742]
[1730473205139,0.5987216,171.51,171.5,49.51533114]
[1730473205446,0.5987216,171.51,171.5,69.51533114]
[1730473209629,0.5987216,171.51,171.5,68.22421742]
[1730473210845,0.5987216,171.51,171.5,68.34970742]
[1730473213648,0.5987216,171.51,171.5,42.14233742]
[1730473214016,0.5987216,171.51,171.49,42.14233742]
[1730473214240,6.4293216,171.51,171.47,18.36545342]
[1730473214451,18.36545342,171.48,171.45,6.08692256]
[1730473214621,18.36545342,171.46,171.41,18.36545342]
[1730473214942,5.8326,171.45,171.42,18.36545342]
[1730473215323,5.8326,171.45,171.43,18.36545342]
[1730473215523,5.8322,171.46,171.43,18.36545342]
[1730473215945,18.36545342,171.49,171.44,18.36545342]
[1730473216128,5.8309,171.5,171.46,18.36545342]